[Event "FRA-ch Teams Top 16-A 2022"]
[Site "Chartres"]
[Date "2022.06.10"]
[Round "2.2"]
[White "Jones, Gawain C B"]
[Black "Demuth, Adrien"]
[Result "1-0"]
[ECO "B24"]
[WhiteElo "2669"]
[BlackElo "2493"]
[Annotator "TA"]
[PlyCount "157"]
[EventDate "2022.06.09"]
[EventType "team-tourn"]
[EventCountry "FRA"]
[SourceTitle "playchess.com"]
[Source "ChessBase"]
[SourceQuality "1"]
[TimeControl "40/5400+30:1800+30"]

{[%evp 14,157,22,12,48,15,35,44,85,45,39,44,53,59,100,91,80,84,84,85,77,77,77,78,75,75,82,77,83,85,78,77,78,3,3,5,16,0,0,4,6,6,4,0,3,0,0,0,0,0,0,0,-4,-5,0,0,0,0,0,0,0,0,0,0,0,0,0,0,0,0,6,8,14,5,15,1,15,12,29,29,47,46,56,33,53,27,32,35,50,22,22,8,8,8,8,8,8,8,18,30,52,0,111,108,115,118,179,166,148,199,181,132,138,133,128,67,195,191,141,134,211,210,200,202,313,260,255,252,284,8,67,67,67,67,66,66,29967,29965,29964,29963,29965,29965,12799,9955,5065,1406]} 1. e4 {[%emt 0:00:19]} c5 {[%emt 0:00:06]} 2. Nf3 {[%emt 0:01:08]} e6 {[%emt 0:00:06]} 3. g3 {[%emt 0:01:35]} d5 {[%emt 0:00:33]} 4. exd5 {[%emt 0:00:11]} exd5 {[%emt 0:00:05]} 5. d4 {[%emt 0:00:06]} cxd4 {[%emt 0:00:04]} 6. Nxd4 {[%emt 0:02:30]} Nc6 {[%emt 0:00:31]} 7. Nc3 {[%emt 0:03:58][%cal Bb1c3,Bc3b5,Bb5c7][%mdl 32]} Nf6 {[%emt 0:18:39]} 8. Bg2 {[%emt 0:01:45]} Bc5 {[%emt 0:00:19] B24: Closed Sicilian: 3 g3 sidelines.} 9. Nb3 {[%emt 0:03:24]} Qe7+ {[%emt 0:09:15]} 10. Qe2 {[%emt 0:06:59] [#]} Bb4 $146 {[%emt 0:09:00] White is slightly better.} ({Predecessor:} 10... Qxe2+ 11. Nxe2 Bb6 12. c3 O-O 13. a4 a6 14. a5 Ba7 15. O-O Bf5 16. Bg5 Ne4 {1-0 (45) Henriquez Villagra,C (2202)-Salgado,J (2147) Chile 2010}) 11. O-O {[%emt 0:05:14]} Be6 {[%emt 0:09:06]} 12. Nb5 {[%emt 0:03:11]} O-O {[%emt 0:05:26]} 13. c3 {[%emt 0:04:47]} Bg4 {[%emt 0:04:21]} 14. Qxe7 {[%emt 0:02:46]} Bxe7 {[%emt 0:00:04]} 15. Re1 {[%emt 0:00:13] Inhibits Be2.} a6 {[%emt 0:08:21]} 16. Nc7 {[%emt 0:11:16][%csl LRa8,LRd5]} Rad8 {[%emt 0:00:11]} 17. Bg5 {[%emt 0:00:39]} Rd7 {[%emt 0:00:49]} 18. Bxf6 {[%emt 0:01:05]} Rxc7 {[%emt 0:00:05]} 19. Bxe7 {[%emt 0:00:17]} Nxe7 {[%emt 0:00:04]} 20. h3 {[%emt 0:07:01]} Be6 {[%emt 0:07:12]} 21. Nd4 {[%emt 0:03:43]} Bc8 {[%emt 0:00:04]} 22. Rad1 {[%emt 0:00:30] White is more active.} Rd8 {[%emt 0:00:16]} 23. c4 {[%emt 0:09:04]} (23. Kh2 $16) 23... Kf8 $1 $11 {[%emt 0:07:06]} (23... dxc4 $2 24. Nf5 $1 {[%mdl 512]} Rcd7 25. Rxd7 Bxd7 26. Nxe7+ $18) 24. cxd5 {[%emt 0:03:21][%cal Od5d6] Strongly threatening d6!} Nxd5 {[%emt 0:02:16]} 25. Nb3 {[%emt 0:02:22]} Rcd7 {[%emt 0:03:51]} ({Much less strong is} 25... Be6 26. f4 $16) 26. Nc5 {[%emt 0:01:00]} Rd6 {[%emt 0:01:34]} 27. Ne4 {[%emt 0:00:20]} R6d7 {[%emt 0:02:21]} 28. Nc5 {[%emt 0:02:06]} Rd6 {[%emt 0:00:09]} 29. Rd4 {[%emt 0:02:47] Red1 is the strong threat.} b6 {[%emt 0:02:21]} 30. Ne4 {[%emt 0:04:15]} R6d7 {[%emt 0:00:26]} 31. h4 {[%emt 0:03:06]} Ne7 {[%emt 0:02:12]} 32. Rb4 {[%emt 0:04:18]} b5 {[%emt 0:02:34]} 33. Nc5 {[%emt 0:01:30]} Rd1 {[%emt 0:00:35]} 34. Kf1 {[%emt 0:00:26]} R1d4 {[%emt 0:02:40]} 35. a3 {[%emt 0:04:38][%cal Ba2a3,Ba3b4][%mdl 32]} Rxb4 {[%emt 0:02:15]} 36. axb4 {[%emt 0:00:02]} Rd2 {[%emt 0:00:22]} 37. b3 {[%emt 0:00:14]} Nd5 {[%emt 0:00:49]} 38. Bxd5 {[%emt 0:04:34]} Rxd5 {[%emt 0:00:04][%mdl 4096] Endgame KRB-KRN} 39. Ra1 {[%emt 0:00:08]} Rd4 {[%emt 0:02:43]} 40. Ke2 {[%emt 0:00:06]} Rxb4 {[%emt 0:00:57]} 41. Kd3 {[%emt 0:08:58]} Rg4 {[%emt 0:03:20]} 42. Nxa6 {[%emt 0:00:40]} Bf5+ {[%emt 0:02:09]} 43. Kc3 {[%emt 0:01:21]} Re4 {[%emt 0:02:23]} 44. Nb4 {[%emt 0:00:47]} g6 {[%emt 0:01:21]} 45. Ra2 {[%emt 0:00:54]} Bd7 {[%emt 0:10:49]} 46. Rd2 {[%emt 0:03:43]} Be6 {[%emt 0:06:26]} 47. Nc6 {[%emt 0:01:11]} h5 {[%emt 0:02:58]} 48. Nd4 {[%emt 0:03:36]} Bd7 {[%emt 0:00:03]} 49. Re2 {[%emt 0:05:33]} Rg4 {[%emt 0:01:32]} 50. Re5 {[%emt 0:04:21]} f6 $1 {[%emt 0:02:32]} 51. Rd5 {[%emt 0:00:14]} Ke7 {[%emt 0:00:17]} 52. Ne2 {[%emt 0:02:56]} b4+ {[%emt 0:01:14]} 53. Kd2 {[%emt 0:02:01]} Be6 {[%emt 0:00:29]} 54. Rd3 {[%emt 0:00:19]} Re4 {[%emt 0:00:27]} 55. Nd4 {[%emt 0:00:18]} Kf7 {[%emt 0:01:27]} 56. Nc6 {[%emt 0:00:06] aiming for f3.} Bf5 {[%emt 0:00:38]} 57. Rd4 {[%emt 0:00:31]} (57. f3 $14 Re8 58. Rd4) 57... Re8 {[%emt 0:00:32]} (57... Rxd4+ $11 58. Nxd4 Be6) 58. Rxb4 $16 {[%emt 0:00:22]} Be4 {[%emt 0:00:27]} 59. Nd4 {[%emt 0:00:15]} g5 {[%emt 0:00:16]} (59... Ke7 $16 60. Rb6 Bd5) 60. Nb5 $18 {[%emt 0:00:38] Hoping for Nd6+.} Kg6 {[%emt 0:00:38]} 61. Nd6 {[%emt 0:00:15][%csl LRe4,LRe8]} Rd8 {[%emt 0:00:11]} 62. Rd4 {[%emt 0:00:21]} ({Better is} 62. Rxe4 $18 Rxd6+ 63. Kc3) 62... Bg2 $16 {[%emt 0:00:57]} 63. b4 {[%emt 0:00:21]} Ra8 {[%emt 0:00:01]} 64. Ke3 {[%emt 0:01:08]} (64. b5 $16) 64... Bf1 {[%emt 0:00:22]} (64... Ra3+ $14 65. Ke2 Ra2+ 66. Rd2 Ra4) 65. Rd1 $1 $18 {[%emt 0:00:21]} Ra3+ {[%emt 0:00:11]} (65... Bh3 $18 66. b5 Ra3+ 67. Kd4 Ra2) 66. Kd4 $1 $16 {[%emt 0:00:07]} Bg2 {[%emt 0:00:33]} (66... Be2 $16 67. Rd2 Bf1) 67. b5 $18 {[%emt 0:00:58]} Rf3 {[%emt 0:01:15]} 68. Rd2 $1 {[%emt 0:01:25]} gxh4 {[%emt 0:00:15]} (68... Ra3 $142 69. b6 Ra1) 69. gxh4 {[%emt 0:00:04]} Rf4+ {[%emt 0:00:06]} 70. Kc5 {[%emt 0:01:35][%cal Of2f3] Black must now prevent f3!} Rxh4 {[%emt 0:00:05]} 71. f4 $2 {[%emt 0:00:20]} ({Worse is} 71. b6 Rh1 $11) (71. Rd3 $1 $18 Rh3 72. Rxh3 Bxh3 73. b6) 71... Bf3 {[%emt 0:01:22]} (71... Rg4 $1 $11) 72. Rf2 $1 $14 {[%emt 0:00:44]} Ba8 $1 {[%emt 0:00:48]} 73. Ra2 {[%emt 0:00:34]} Bf3 {[%emt 0:00:06]} 74. Ra3 $1 {[%emt 0:01:28]} Rxf4 $2 {[%emt 0:00:37][%mdl 8192]} (74... Bh1 $14) 75. b6 {[%emt 0:00:03][%cal Bb5b6,Bb6b7][%mdl 32]} Bh1 {[%emt 0:00:48]} 76. Ra1 $1 {[%emt 0:00:28]} Bg2 {[%emt 0:00:32] [#]} 77. Rg1 $1 {[%emt 0:00:11]} Rg4 {[%emt 0:00:22] [#]} 78. Rxg2 $1 {[%emt 0:00:12][%mdl 576] Remove Defender, Promotion} Rxg2 {[%emt 0:00:01]} 79. b7 {[%emt 0:00:05] Weighted Error Value: White=0.07 (flawless) /Black=0.09 (flawless)} 1-0

[Event "FRA-ch Teams Top 16-A 2022"]
[Site "Chartres"]
[Date "2022.06.10"]
[Round "2.3"]
[White "Parligras, Mircea-Emilian"]
[Black "Grandelius, Nils"]
[Result "1/2-1/2"]
[ECO "D17"]
[WhiteElo "2583"]
[BlackElo "2635"]
[Annotator "TA"]
[PlyCount "55"]
[EventDate "2022.06.09"]
[EventType "team-tourn"]
[EventCountry "FRA"]
[SourceTitle "playchess.com"]
[Source "ChessBase"]
[SourceQuality "1"]
[TimeControl "40/5400+30:1800+30"]

{[%evp 20,55,27,20,38,6,10,4,4,0,11,-6,0,0,0,0,11,9,14,32,20,0,0,0,0,0,0,0,0,0,0,0,0,0,0,0,0,-1]} 1. d4 {[%emt 0:00:03]} d5 {[%emt 0:00:56]} 2. c4 {[%emt 0:00:12]} c6 {[%emt 0:00:30]} 3. Nf3 {[%emt 0:00:28]} Nf6 {[%emt 0:00:11]} 4. Nc3 {[%emt 0:00:21]} dxc4 {[%emt 0:01:06]} 5. a4 {[%emt 0:00:10]} Bf5 {[%emt 0:00:47]} 6. Ne5 {[%emt 0:00:11]} Nbd7 {[%emt 0:00:43]} 7. Nxc4 {[%emt 0:00:43]} Qc7 {[%emt 0:00:38]} 8. g3 {[%emt 0:01:22]} e5 {[%emt 0:00:48]} 9. dxe5 {[%emt 0:00:14]} Nxe5 {[%emt 0:00:05]} 10. Bf4 {[%emt 0:00:17]} Nfd7 {[%emt 0:00:13]} 11. Bg2 {[%emt 0:03:45]} g5 $1 {[%emt 0:01:31] The main line 11...g5 scores better than 11...f6. D17: Slav Defence: 5 a4 Bf5: Lines with 6 Nh4 and 6 Ne5.} 12. Bxe5 {[%emt 0:12:15]} Nxe5 {[%emt 0:02:59]} 13. Qd4 {[%emt 0:00:05]} f6 {[%emt 0:01:26]} 14. Ne3 {[%emt 0:12:08]} (14. O-O-O {feels hotter.} Be6 15. f4 gxf4 16. gxf4 Rd8 17. Qxd8+ Qxd8 18. Rxd8+ Kxd8 19. fxe5 Bxc4 20. exf6 Kc7 21. Bh3) 14... Bg6 {[%emt 0:02:51] [#]} 15. h4 $146 {[%emt 0:14:51]} ({Predecessor:} 15. a5 Qd6 16. Qa4 Qb4 17. Qa2 Bf7 18. Qb1 Bg6 19. Qa2 Bf7 20. Qb1 Bg6 21. Qa2 Bf7 {½-½ (21) Lenic,L (2651)-Ragger,M (2646) Austria 2013}) 15... Qd8 {[%emt 0:39:13]} 16. Qxd8+ {[%emt 0:05:08]} Rxd8 {[%emt 0:00:47]} 17. hxg5 {[%emt 0:02:14]} fxg5 {[%emt 0:01:07]} 18. Be4 {[%emt 0:02:19]} Bc5 {[%emt 0:04:53]} 19. Bxg6+ {[%emt 0:01:59]} Nxg6 {[%emt 0:00:01]} 20. Ne4 {[%emt 0:09:14] The position is equal.} (20. Nf5 {looks sharper.} O-O 21. Nh6+ Kg7 22. e3) 20... Bxe3 {[%emt 0:07:14]} 21. fxe3 {[%emt 0:00:07]} h6 {[%emt 0:03:06]} 22. a5 {[%emt 0:02:47]} Ke7 {[%emt 0:05:56]} 23. Ra4 {[%emt 0:03:53]} Rd5 {[%emt 0:03:19] Against Nc5} 24. Rb4 {[%emt 0:00:36]} Rb5 {[%emt 0:00:09]} 25. Rxb5 {[%emt 0:00:15]} cxb5 {[%emt 0:00:02]} 26. Nc5 {[%emt 0:09:26]} b6 {[%emt 0:07:20]} 27. axb6 {[%emt 0:00:07]} axb6 {[%emt 0:00:02]} 28. Nd3 {[%emt 0:00:52] An interesting draw.  Weighted Error Value: White=0.04 (flawless) /Black=0.03 (flawless)} 1/2-1/2

[Event "FRA-ch Teams Top 16-A 2022"]
[Site "Chartres"]
[Date "2022.06.10"]
[Round "2.4"]
[White "Fedorchuk, Sergey A."]
[Black "Santos Ruiz, Miguel"]
[Result "1/2-1/2"]
[ECO "C42"]
[WhiteElo "2606"]
[BlackElo "2586"]
[Annotator "TA"]
[PlyCount "26"]
[EventDate "2022.06.09"]
[EventType "team-tourn"]
[EventCountry "FRA"]
[SourceTitle "playchess.com"]
[Source "ChessBase"]
[SourceQuality "1"]
[TimeControl "40/5400+30:1800+30"]

{[%evp 13,26,18,15,13,17,28,26,0,0,6,10,0,0,-6,0]} 1. e4 {[%emt 0:00:08]} e5 {[%emt 0:00:04]} 2. Nf3 {[%emt 0:00:16]} Nf6 {[%emt 0:00:05]} 3. Nxe5 {[%emt 0:02:53]} d6 {[%emt 0:00:16]} 4. Nf3 {[%emt 0:00:44]} Nxe4 {[%emt 0:00:08]} 5. Nc3 {[%emt 0:02:08]} Nxc3 {[%emt 0:00:18]} 6. dxc3 {[%emt 0:00:09]} Be7 {[%emt 0:00:05]} 7. Be3 {[%emt 0:04:19]} O-O {[%emt 0:00:23]} 8. Qd2 {[%emt 0:05:27] C42: Petroff Defence: 3 Nxe5 and unusual White 3rd moves.} Nd7 {[%emt 0:00:39]} 9. O-O-O {[%emt 0:01:30]} Re8 {[%emt 0:00:05]} 10. Kb1 {[%emt 0:05:15]} Nf6 {[%emt 0:00:32] The position is equal.} 11. Bd3 {[%emt 0:01:27]} d5 {[%emt 0:08:02]} 12. Rhe1 {[%emt 0:06:11]} Bg4 {[%emt 0:21:48] [#]} 13. Bd4 $146 {[%emt 0:17:03]} ({Predecessor:} 13. h3 Bxf3 14. gxf3 a6 15. h4 c5 16. Rg1 Qb6 17. h5 Bf8 18. Rg5 Re6 19. Rdg1 {½-½ (37) Borstnik,A (2612)-Blitsko,B (2504) ICCF email 2020}) 13... c5 {[%emt 0:08:16] An uneventful encounter.  Weighted Error Value: White=0.06 (flawless) /Black=0.00 (flawless)} 1/2-1/2

[Event "FRA-ch Teams Top 16-A 2022"]
[Site "Chartres"]
[Date "2022.06.10"]
[Round "2.5"]
[White "Barbot, Pierre"]
[Black "Edouard, Romain"]
[Result "1/2-1/2"]
[ECO "A80"]
[WhiteElo "2450"]
[BlackElo "2575"]
[Annotator "TA"]
[PlyCount "54"]
[EventDate "2022.06.09"]
[EventType "team-tourn"]
[EventCountry "FRA"]
[SourceTitle "playchess.com"]
[Source "ChessBase"]
[SourceQuality "1"]
[TimeControl "40/5400+30:1800+30"]

{[%evp 9,54,18,23,19,18,12,10,-22,-6,-9,-4,-15,13,0,16,7,24,29,35,18,11,13,47,59,54,27,33,35,34,21,22,29,31,15,39,0,0,0,0,0,0,0,0,0,0,0,0]} 1. d4 {[%emt 0:00:04]} f5 {[%emt 0:00:05]} 2. Nf3 {[%emt 0:01:13]} Nf6 {[%emt 0:00:20]} 3. Bf4 {[%emt 0:00:06]} d6 {[%emt 0:01:17]} 4. e3 {[%emt 0:00:06]} g6 {[%emt 0:00:17]} 5. Be2 {[%emt 0:01:34]} Bg7 {[%emt 0:00:06]} 6. O-O {[%emt 0:00:43] A80: Dutch Defence: Unusual White second moves.} O-O {[%emt 0:00:07]} 7. c4 {[%emt 0:01:31]} Ne4 {[%emt 0:00:36][%cal Oe7e5]} 8. h3 {[%emt 0:10:39]} Nc6 {[%emt 0:03:09]} (8... e5 $5 {[%cal Re5f4]} 9. Bh2 (9. dxe5 Nc6 $11) 9... Nd7 $11) 9. Nbd2 {[%emt 0:16:15]} e5 {[%emt 0:00:40]} 10. Bh2 {[%emt 0:00:08] [#]} Ng5 $146 {[%emt 0:04:15]} ({Predecessor:} 10... Nxd2 11. Qxd2 e4 12. Ne1 Ne7 13. Rc1 g5 14. f3 exf3 15. Nxf3 Ng6 16. e4 g4 17. hxg4 fxe4 {0-1 (45) Terbe,J (2273)-Khachatryan,V (1869) Chess.com INT 2020}) 11. c5 {[%emt 0:15:57]} Nxf3+ {[%emt 0:01:23]} 12. Nxf3 {[%emt 0:00:05]} e4 {[%emt 0:00:25]} 13. cxd6 {[%emt 0:08:55]} cxd6 {[%emt 0:04:06]} 14. Nd2 {[%emt 0:00:05]} d5 {[%emt 0:00:06]} 15. Rc1 {[%emt 0:02:34]} f4 {[%emt 0:04:35]} 16. Bxf4 {[%emt 0:04:34]} Nxd4 {[%emt 0:00:13][%cal Od8b6]} 17. Bc7 {[%emt 0:07:06] Prevents Qb6.} (17. Nb3 $5 {[%cal Rb3d4]} Nxe2+ 18. Qxe2 $11) 17... Nxe2+ {[%emt 0:00:14]} 18. Qxe2 {[%emt 0:00:02]} Qg5 {[%emt 0:00:32]} 19. f4 {[%emt 0:03:42]} exf3 {[%emt 0:00:21]} 20. Nxf3 {[%emt 0:00:04]} Qe7 {[%emt 0:02:09]} 21. Bg3 {[%emt 0:01:26][%cal Bc7g3,Bg3f2,Bf2d4][%mdl 32]} Re8 {[%emt 0:04:23]} 22. Rc7 {[%emt 0:06:46]} Qxe3+ {[%emt 0:00:36] The position is equal.} 23. Qxe3 {[%emt 0:00:03]} Rxe3 {[%emt 0:00:03]} 24. Bf2 {[%emt 0:00:09]} Re4 {[%emt 0:13:15]} 25. Rfc1 {[%emt 0:00:34]} Rc4 {[%emt 0:08:18]} 26. R1xc4 {[%emt 0:00:42]} dxc4 {[%emt 0:00:02]} 27. Bd4 {[%emt 0:00:10]} Bh6 {[%emt 0:07:58] Weighted Error Value: White=0.10 (very precise) /Black=0.07 (flawless)} 1/2-1/2

[Event "FRA-ch Teams Top 16-A 2022"]
[Site "Chartres"]
[Date "2022.06.10"]
[Round "2.6"]
[White "David, Alberto"]
[Black "Wirig, Anthony"]
[Result "1/2-1/2"]
[ECO "B40"]
[WhiteElo "2520"]
[BlackElo "2520"]
[Annotator "TA"]
[PlyCount "33"]
[EventDate "2022.06.09"]
[EventType "team-tourn"]
[EventCountry "FRA"]
[SourceTitle "playchess.com"]
[Source "ChessBase"]
[SourceQuality "1"]
[TimeControl "40/5400+30:1800+30"]

{[%evp 9,33,21,16,12,15,15,22,12,19,-13,36,28,47,33,32,-19,-18,-33,-24,-50,0,0,0,0,17,20]} 1. e4 {[%emt 0:00:05]} c5 {[%emt 0:00:20]} 2. Nf3 {[%emt 0:00:08]} e6 {[%emt 0:00:28]} 3. g3 {[%emt 0:00:41]} d5 {[%emt 0:02:30]} 4. exd5 {[%emt 0:00:15]} exd5 {[%emt 0:00:07]} 5. d4 {[%emt 0:00:20]} cxd4 {[%emt 0:01:55]} 6. Nxd4 {[%emt 0:09:29] B40: Sicilian: 2...e6, Unusual lines.} Nc6 {[%emt 0:00:03]} 7. Bg2 {[%emt 0:06:05] Active counter play!} Bc5 {[%emt 0:00:38]} 8. Nb3 {[%emt 0:09:11][%csl LRc5,LRd5]} Qe7+ {[%emt 0:03:39] [#]} 9. Kf1 $146 {[%emt 0:00:18] aiming for Nc3.} (9. Qe2 $5 {[%cal Rb3c5]} Bb6 10. Qxe7+ Ngxe7 11. O-O $11) ({Predecessor:} 9. Qe2 Bb6 10. Nc3 Nb4 11. Qxe7+ Nxe7 12. O-O Nxc2 13. Rb1 Bf5 14. Bf4 Rd8 15. Rbd1 {½-½ (86) Adams,M (2716)-Vidit,S (2726) Tornelo INT 2021}) 9... Bb6 {[%emt 0:20:43]} (9... Be6 $11) 10. Nc3 $14 {[%emt 0:01:33]} Nf6 {[%emt 0:11:05]} 11. Bg5 $1 {[%emt 0:09:56]} Be6 {[%emt 0:02:37]} 12. Qf3 {[%emt 0:07:51]} ({But not} 12. Bxd5 O-O-O 13. Bxf6 Qxf6 14. Bxe6+ Qxe6 $17) (12. Nxd5 $14 Bxd5 13. Bxd5) 12... O-O-O $11 {[%emt 0:10:25]} 13. Rd1 {[%emt 0:13:52]} Rhe8 {[%emt 0:17:41]} 14. Na4 {[%emt 0:18:48]} d4 {[%emt 0:04:09]} (14... Bc7 $15 15. Nac5 Kb8) 15. Nxb6+ {[%emt 0:00:07] The position is equal.} axb6 {[%emt 0:00:01]} 16. Kg1 {[%emt 0:04:34]} Qd7 {[%emt 0:16:02] [#] Strongly threatening ...Bg4.} 17. Qf4 $1 {[%emt 0:07:20] Weighted Error Value: White=0.13 (very precise) /Black=0.11 (very precise)} ({Of course not} 17. Bxf6 Bg4 18. Bxd8 Bxf3 19. Bxf3 Rxd8 $17) 1/2-1/2

[Event "FRA-ch Teams Top 16-A 2022"]
[Site "Chartres"]
[Date "2022.06.10"]
[Round "2.7"]
[White "Milliet, Sophie"]
[Black "Velten, Paul"]
[Result "0-1"]
[ECO "C16"]
[WhiteElo "2410"]
[BlackElo "2492"]
[Annotator "TA"]
[PlyCount "120"]
[EventDate "2022.06.09"]
[EventType "team-tourn"]
[EventCountry "FRA"]
[SourceTitle "playchess.com"]
[Source "ChessBase"]
[SourceQuality "1"]
[TimeControl "40/5400+30:1800+30"]

{[%evp 12,120,33,22,88,85,75,51,79,89,62,50,52,64,55,56,54,12,61,56,58,59,64,47,43,37,37,39,46,0,14,0,12,6,6,16,11,0,78,0,0,0,0,-5,0,0,29,35,29,25,61,74,57,69,320,329,308,314,229,0,43,34,60,-10,-22,-163,-157,-239,-239,-243,-248,-239,-239,-392,-380,-374,-384,-531,-402,-681,-664,-29963,-29965,-29975,-29977,-29975,-29977,-29977,-29978,-29978,-29979,-29979,-29980,-29980,-29981,-29981,-29982,-29982,-29983,-29983,-29982,-29982,-29983,-29983,-29984,-29984,-29984,-29987,-29988,-29988,-29988]} 1. e4 {[%emt 0:00:03] Finkel,A} e6 {[%emt 0:00:52]} 2. d4 {[%emt 0:00:06]} d5 {[%emt 0:00:54]} 3. Nc3 {[%emt 0:00:09]} Bb4 {[%emt 0:01:42]} 4. e5 {[%emt 0:00:18]} b6 {[%emt 0:01:56]} 5. a3 {[%emt 0:00:55]} Bf8 {[%emt 0:01:34]} 6. Nf3 {[%emt 0:02:36]} Ne7 {[%emt 0:02:42]} 7. h4 {[%emt 0:05:20]} h5 {[%emt 0:02:56] C16: French: 3 Nc3 Bb4 4 e5: Lines without ...c5.} (7... c5 $11) 8. Bg5 $16 {[%emt 0:09:29]} Qd7 {[%emt 0:01:31] [#]} 9. b4 $146 {[%emt 0:01:07] Against c5} ({Predecessor:} 9. Bb5 c6 10. Ba4 Ba6 11. Ne2 Nf5 12. c3 Bb5 13. Bc2 Ne7 14. a4 Ba6 15. b4 {1-0 (37) Dolmatov,S (2570)-Danielian,O (2450) Moscow 1998 CBM 063 [Finkel,A]}) 9... Ba6 {[%emt 0:15:41] White is slightly better.} 10. b5 {[%emt 0:01:46]} Bb7 {[%emt 0:00:23]} 11. Bd3 {[%emt 0:01:33]} c5 {[%emt 0:01:31]} 12. bxc6 {[%emt 0:03:56]} Nexc6 {[%emt 0:01:27]} 13. O-O {[%emt 0:00:44]} Ba6 {[%emt 0:00:58]} 14. Ne2 {[%emt 0:12:18][%cal Oc2c4,Bc3e2,Be2g3,Bg3e4][%mdl 32]} Be7 {[%emt 0:03:00]} (14... Na5 $11 {might be stronger.}) 15. Bxa6 $14 {[%emt 0:07:52]} Nxa6 {[%emt 0:01:20]} 16. Qd3 {[%emt 0:00:08]} Nc7 {[%emt 0:00:57]} 17. c4 {[%emt 0:01:42]} dxc4 {[%emt 0:01:29]} 18. Qxc4 {[%emt 0:00:06] aiming for Rfc1.} Nd5 {[%emt 0:01:20]} 19. Ng3 {[%emt 0:07:03]} f6 {[%emt 0:03:19]} 20. exf6 {[%emt 0:04:22]} gxf6 {[%emt 0:01:00]} 21. Bd2 {[%emt 0:01:27]} Bd6 {[%emt 0:12:17]} 22. Ne4 {[%emt 0:01:25]} Nce7 {[%emt 0:00:29]} 23. Rfe1 {[%emt 0:06:14][%cal Oe4f6]} Rc8 {[%emt 0:03:05]} 24. Qb3 {[%emt 0:00:33][%cal Oe4f6]} a5 {[%emt 0:02:55] [#]} (24... Rc6 $11 {keeps the balance.}) 25. Re2 {[%emt 0:02:59]} (25. Nxd6+ Qxd6 26. Re4 Qd7 $11) (25. Nxf6+ $1 $16 Nxf6 26. Rxe6) 25... Rc6 $11 {[%emt 0:00:29]} 26. Rae1 {[%emt 0:00:32][%cal Oe4f6]} Bc7 {[%emt 0:00:55]} 27. a4 {[%emt 0:07:36]} Rg8 {[%emt 0:01:31]} 28. Qb5 {[%emt 0:11:51]} Kf7 {[%emt 0:03:04] [#]} 29. Nxf6 $1 {[%emt 0:06:14]} Nxf6 {[%emt 0:05:57]} 30. Ng5+ {[%emt 0:00:03]} Rxg5 {[%emt 0:00:24]} 31. hxg5 {[%emt 0:00:03]} (31. Qxg5 $2 Qxd4 32. Bc1 (32. g3 $2 Qxa4 33. Re3 Qd4 $19) 32... Qxa4 $19) 31... Nfd5 {[%emt 0:04:32]} 32. Rxe6 $1 {[%emt 0:03:03][%cal Og5g6]} Bd6 $2 {[%emt 0:00:25][%mdl 8192]} (32... Qxe6 33. Rxe6 Kxe6 34. g3 $16) (32... Rd6 $1 $14 33. Qxd7 Rxd7) 33. Rh6 $18 {[%emt 0:01:52]} (33. Qe2 Bh2+ 34. Kxh2 Qxe6 35. Qxh5+ Qg6 36. Qf3+ (36. Qh8 Qg7 $17) 36... Qf5 37. Qh5+ Kg8 38. Qe8+ Qf8 $17) 33... Qg4 {[%emt 0:02:38]} 34. Qd3 {[%emt 0:01:28] Threatens to win with f3.} Ke8 {[%emt 0:03:56]} 35. Qb5 $2 {[%emt 0:00:28]} ({Don't take} 35. Qg6+ $6 Kd7 36. Qd3 (36. Qxh5 Qxh5 37. Rxh5 Rc4 $11) 36... Kc7 $16) (35. g6 $18) 35... Kd8 {[%emt 0:00:33]} 36. Rh8+ {[%emt 0:00:24]} Kd7 $1 {[%emt 0:00:38][%cal Bd8d7,Bd7e7,Be7f7,Bf7g6,Bg6g5,Bg5f5][%mdl 32]} 37. Rh7 {[%emt 0:00:39]} ({White should try} 37. Qd3 $1 $14) 37... Qxd4 $40 {[%emt 0:01:24][%mdl 128] Black mounts an attack. Chess con chili.} 38. Rc1 {[%emt 0:00:33] Black converts the advantage convincingly.} (38. Bc1 $11 {and White has nothing to worry.}) 38... Bc5 $19 {[%emt 0:00:33]} 39. Be3 {[%emt 0:00:21]} (39. Be1 $17) 39... Nxe3 {[%emt 0:06:08]} ({And not} 39... Qe4 40. Bxc5 Qxh7 41. Bxe7 Nxe7 42. Rd1+ Ke8 43. Re1 $17) 40. Rxe7+ {[%emt 0:00:16]} Kxe7 {[%emt 0:00:10]} 41. Qxc6 {[%emt 0:30:28] [#] Black must now prevent Re1.} Ng4 $1 {[%emt 0:30:37] Active counter play!} 42. Re1+ $2 {[%emt 0:00:00] [#]} (42. Qf3 {is a better defense.} Qe5 43. g3) 42... Kf7 $1 {[%emt 0:00:00]} 43. Qf3+ {[%emt 0:00:00]} ({Weaker is} 43. Rf1 Qe5 44. Qf3+ Kg6 $19) 43... Kg6 {[%emt 0:00:00][%cal Rd4f2]} 44. Rf1 {[%emt 0:00:00]} Kxg5 {[%emt 0:00:00] Hoping for ...Qe5.} 45. g3 {[%emt 0:00:00]} (45. Rd1 $142 Qxf2+ 46. Qxf2 Bxf2+ 47. Kh1) 45... Nxf2 {[%emt 0:00:00] ( -> ...Qb2)} 46. Kg2 {[%emt 0:00:00]} Qd2 {[%emt 0:00:00] Black mates.} 47. Rxf2 {[%emt 0:01:03]} Qxf2+ {[%emt 0:00:00]} 48. Qxf2 {[%emt 0:00:06]} Bxf2 {[%emt 0:00:00]} 49. Kxf2 {[%emt 0:00:05] K3P-KPP} Kf5 {[%emt 0:00:00]} 50. Kf3 {[%emt 0:02:16]} Ke5 {[%emt 0:00:00]} 51. Ke3 {[%emt 0:00:06]} Kd5 {[%emt 0:00:00]} 52. Kd3 {[%emt 0:00:09]} Kc5 {[%emt 0:00:00]} 53. Kc3 {[%emt 0:00:03]} b5 {[%emt 0:00:00]} 54. axb5 {[%emt 0:00:06]} Kxb5 {[%emt 0:00:00] KPP-KP} 55. Kb3 {[%emt 0:00:09]} Kc5 {[%emt 0:00:00]} 56. Ka4 {[%emt 0:00:04]} Kd4 {[%emt 0:00:00]} 57. Kxa5 {[%emt 0:00:03]} Ke4 {[%emt 0:00:00]} 58. Kb4 {[%emt 0:00:05]} Kf3 {[%emt 0:00:00]} 59. Kc3 {[%emt 0:00:02]} Kxg3 {[%emt 0:00:00]} 60. Kd2 {[%emt 0:00:02]} Kg2 {[%emt 0:00:00] Weighted Error Value: White=0.35/Black=0.15 (very precise)} 0-1